bitfinex/quotes_ETHUSD_20251117
["timestamp","ask_amount","ask_price","bid_price","bid_amount"]
[1763405542366,1.09059264,3044.0,3042.8,0.001]
[1763405542568,0.405504,3043.9,3042.8,0.001]
[1763405542783,0.867104,3043.9,3042.8,0.001]
[1763405543098,0.405504,3043.7,3042.8,0.001]
[1763405543454,0.589104,3042.9,3042.8,0.001]
[1763405543883,5.24403533,3042.9,3042.8,0.001]
[1763405544069,2.34911313,3042.9,3042.8,0.001]
[1763405544253,1.49609664,3042.9,3042.8,0.001]
[1763405544455,0.90699264,3042.9,3042.8,0.001]
[1763405545410,4.19333133,3042.9,3042.8,0.001]
[1763405545608,5.06043533,3042.9,3042.8,0.001]
[1763405545902,1.77409664,3042.9,3042.8,0.001]
[1763405546102,1.81852758,3042.9,3042.8,0.001]
[1763405546263,1.31249664,3042.9,3042.8,0.001]
[1763405546462,0.90699264,3042.9,3042.8,0.001]
[1763405547668,0.90699264,3042.9,3042.8,0.2241]
[1763405547914,0.90699264,3042.9,3042.8,0.001]
[1763405549281,0.90699264,3042.9,3042.8,0.2241]
[1763405549478,0.21953147,3044.5,3042.8,0.2241]
[1763405549714,0.1648058,3044.8,3042.8,0.2241]
[1763405549878,0.4616,3044.8,3042.8,0.2241]
[1763405550424,1.045959,3044.8,3042.8,0.2241]
[1763405550713,0.42121805,3044.8,3042.8,0.2241]
[1763405550915,0.1836,3044.9,3042.8,0.2241]
[1763405551220,0.88281805,3044.8,3042.8,0.2241]
[1763405551381,1.18579239,3044.7,3042.8,0.2241]
[1763405551723,0.405504,3044.5,3042.8,0.2241]
[1763405552287,0.4616,3044.6,3042.8,0.2241]
[1763405552746,1.25864358,3044.9,3042.8,0.2241]
[1763405552886,0.1836,3044.9,3042.9,0.405504]
[1763405553293,0.6452,3045.8,3043.3,0.405504]
[1763405553518,1.78981069,3045.6,3043.5,0.405504]
[1763405553891,1.04601914,3045.6,3043.5,0.405504]
[1763405554631,1.36859264,3045.5,3043.5,0.405504]
[1763405554936,0.405504,3045.4,3043.5,0.405504]
[1763405555236,0.867104,3045.4,3043.5,0.405504]
[1763405555409,0.405504,3045.2,3042.8,0.001]
[1763405555602,0.405504,3045.0,3042.8,0.001]
[1763405555802,0.42121805,3044.9,3042.8,0.001]
[1763405556031,0.405504,3044.6,3042.8,0.001]
[1763405556233,0.42121805,3044.5,3042.8,0.001]
[1763405556445,0.405504,3044.4,3042.8,0.001]
[1763405557347,0.1805,3044.9,3042.8,0.001]
[1763405557517,1.37239264,3044.8,3042.8,0.001]
[1763405557720,0.405504,3044.7,3042.8,0.001]
[1763405558030,1.31249664,3044.5,3042.8,0.001]
[1763405558203,1.77789664,3044.5,3042.8,0.001]
[1763405558842,0.4654,3044.5,3042.8,0.001]
[1763405559045,0.17936107,3044.5,3042.8,0.001]
[1763405559216,1.31249664,3044.8,3042.8,0.001]
[1763405559417,0.870904,3044.8,3042.8,0.001]
[1763405559633,0.1805,3044.9,3042.9,0.405504]
[1763405559945,0.1805,3044.9,3042.8,0.001]
[1763405560149,0.4654,3044.8,3042.8,0.001]
[1763405560505,1.37239264,3044.8,3042.8,0.001]
[1763405560706,0.48370802,3044.7,3042.8,0.001]
[1763405561357,0.42121805,3045.6,3043.9,0.405504]
[1763405561510,0.002,3045.7,3043.9,0.405504]
[1763405561852,0.90699264,3045.6,3043.2,0.405504]
[1763405562052,7.8795628,3045.5,3043.0,0.405504]
[1763405562204,0.83007809,3045.4,3043.0,0.405504]
[1763405562409,1.29547809,3045.4,3043.0,0.405504]
[1763405562658,0.4654,3045.3,3043.0,0.405504]
[1763405563131,0.4654,3045.3,3043.0,1.5795044]
[1763405563709,0.4654,3045.3,3042.8,2.66899324]
[1763405563710,0.405504,3045.2,3042.8,0.001]
[1763405563922,0.405504,3044.9,3042.8,0.001]
[1763405564146,1.73371469,3044.9,3042.8,0.001]
[1763405564403,0.405504,3044.7,3042.8,0.001]
[1763405564556,0.405504,3044.5,3042.8,0.001]
[1763405564953,0.4654,3044.4,3042.8,0.001]
[1763405565408,0.405504,3044.3,3042.8,0.001]
[1763405565904,3.69038176,3044.3,3042.8,0.001]
[1763405566109,0.405504,3044.1,3042.8,0.001]
[1763405566611,0.405504,3043.9,3042.8,0.001]
[1763405567110,1.32257082,3044.2,3042.8,0.001]
[1763405567111,0.6459,3043.8,3042.8,0.001]
[1763405567495,0.4654,3043.7,3042.8,0.001]
[1763405567669,0.1805,3043.8,3042.8,0.001]
[1763405568073,1.89947874,3043.8,3042.8,0.001]
[1763405568320,0.9924861,3043.8,3042.8,0.001]
[1763405568615,0.3465861,3043.8,3042.8,0.001]
[1763405568817,1.37239264,3043.9,3042.8,0.001]
[1763405569023,0.4654,3043.9,3042.8,0.001]
[1763405569177,0.90699264,3044.0,3042.8,0.001]
[1763405569178,4.19214968,3044.0,3042.8,0.001]
[1763405569378,1.37239264,3043.9,3042.8,0.001]
[1763405569805,0.4654,3043.9,3042.8,0.001]
[1763405570720,1.37239264,3043.9,3042.8,0.001]
[1763405571019,1.37239264,3043.8,3042.8,0.001]
[1763405571226,0.46577026,3043.7,3042.8,0.001]
[1763405572380,0.4654,3043.6,3042.8,0.001]
[1763405572822,4.19215572,3044.0,3042.8,0.001]
[1763405573011,1.37239264,3043.9,3042.8,0.001]
[1763405573623,0.4654,3043.8,3042.8,0.001]
[1763405574386,0.90699264,3044.0,3042.8,0.001]
[1763405574581,0.43725616,3043.9,3042.8,0.001]
[1763405575321,0.90265616,3043.9,3042.8,0.001]
[1763405575532,0.4654,3043.9,3042.8,0.001]
[1763405576127,1.37239264,3043.9,3042.8,0.001]
[1763405576440,0.4654,3043.9,3042.8,0.001]
[1763405576638,0.1805,3044.1,3042.8,0.001]
[1763405577357,0.002,3044.7,3042.8,0.001]
[1763405577841,0.39322307,3044.6,3042.8,0.001]
[1763405578053,0.002,3044.7,3042.8,0.001]
[1763405578420,0.90899264,3044.7,3042.9,0.405504]
[1763405578619,0.002,3044.7,3042.9,1.5795044]
[1763405579014,0.002,3044.7,3043.2,1.5795044]
[1763405579760,0.002,3044.7,3043.2,1.1740004]
[1763405579925,0.002,3044.7,3043.1,1.1740004]
[1763405580237,0.002,3044.7,3043.2,1.1740004]
[1763405580538,0.002,3044.7,3043.1,1.1740004]
[1763405580750,0.002,3044.7,3043.2,1.61236454]
[1763405580905,0.002,3044.7,3043.2,1.5795044]
[1763405581106,0.5979,3044.8,3043.3,0.0481]
[1763405581306,0.1325,3044.8,3043.3,0.0481]
[1763405582305,0.4654,3044.7,3043.3,0.0481]
[1763405582856,0.002,3045.1,3044.6,0.0481]
[1763405583102,0.002,3045.1,3044.0,0.0481]
[1763405583307,0.002,3045.1,3045.0,0.0481]
[1763405583601,0.002,3045.1,3044.1,0.405504]
[1763405583761,0.002,3045.1,3045.0,0.0481]
[1763405584257,0.002,3045.1,3045.0,0.0962]
[1763405585262,0.002,3045.5,3045.0,0.0962]
[1763405585457,0.002,3045.5,3045.3,0.0962]
[1763405585758,0.002,3045.5,3045.3,0.1443]
[1763405586182,0.002,3045.7,3045.3,0.1443]
[1763405586183,0.002,3045.7,3045.5,0.405504]
[1763405586400,0.002,3045.8,3045.7,0.405504]
[1763405586695,0.002,3046.1,3045.7,0.453604]
[1763405586931,0.002,3046.1,3046.0,0.0481]
[1763405587424,0.002,3046.1,3045.3,1.2221004]
[1763405587425,0.002,3046.1,3045.3,0.0481]
[1763405587989,0.002,3046.1,3045.4,0.0481]
[1763405588501,0.002,3046.1,3046.0,0.0481]
[1763405588820,0.002,3046.1,3046.0,0.0962]
[1763405589191,0.002,3046.1,3046.0,0.0481]
[1763405589741,0.002,3046.1,3046.0,0.0962]
[1763405589888,0.002,3046.1,3046.0,0.501704]
[1763405590624,0.002,3046.1,3045.3,0.0481]
[1763405590625,0.002,3046.1,3045.4,0.405504]
[1763405591129,0.002,3046.1,3045.4,0.0481]
[1763405591891,0.002,3046.1,3045.3,0.0481]
[1763405592289,0.002,3046.1,3045.3,0.0962]
[1763405592701,0.002,3046.1,3046.0,0.0481]
[1763405595511,0.002,3046.1,3046.0,0.0962]
[1763405595726,0.002,3046.1,3046.0,0.0481]
[1763405596451,0.002,3046.1,3046.0,0.501704]
[1763405596634,0.002,3046.1,3045.5,0.405504]
[1763405596838,0.002,3046.1,3046.0,0.0481]
[1763405597333,0.002,3046.1,3046.0,0.0962]
[1763405598776,0.6315,3048.2,3046.3,0.0481]
[1763405598908,0.6315,3048.2,3046.4,0.453604]
[1763405599103,0.451,3048.1,3046.4,0.0481]
[1763405599304,0.451,3048.1,3046.5,0.0481]
[1763405599551,0.451,3048.1,3046.6,9.46540933]
[1763405599733,0.451,3048.1,3046.8,0.405504]
[1763405599947,1.35799264,3048.1,3046.2,0.405504]
[1763405600109,1.08749264,3048.2,3045.9,0.405504]
[1763405600305,0.451,3048.0,3046.2,0.0481]
[1763405600522,1.35799264,3048.0,3046.2,0.0481]
[1763405600734,0.1805,3048.2,3046.3,0.405504]
[1763405600735,0.451,3047.9,3046.3,0.405504]
[1763405601022,0.451,3047.9,3046.4,0.95135093]
[1763405601229,0.451,3047.9,3046.2,0.0481]
[1763405601230,1.35799264,3047.9,3046.3,0.405504]
[1763405601732,0.451,3047.8,3046.3,0.405504]
[1763405601988,0.6315,3048.2,3046.7,0.405504]
[1763405602293,0.6315,3048.2,3046.6,9.05990533]
[1763405602294,0.1805,3048.2,3046.9,0.405504]
[1763405602603,0.002,3048.7,3047.0,9.05990533]
[1763405602755,0.002,3048.7,3047.2,0.405504]
[1763405603284,0.002,3048.7,3047.4,9.05990533]
[1763405603452,0.002,3048.7,3047.6,0.405504]
[1763405603972,0.002,3048.7,3047.8,0.405504]
[1763405604395,0.002,3048.7,3047.8,0.0481]
[1763405605918,0.002,3048.7,3047.5,0.405504]
[1763405606147,0.453,3048.7,3047.5,0.405504]
[1763405606794,0.453,3048.7,3047.7,0.405504]
[1763405606980,0.002,3048.7,3047.7,0.453604]
[1763405607376,0.002,3048.7,3047.5,0.405504]
[1763405607618,0.002,3048.7,3047.9,0.405504]
[1763405607828,0.453,3048.7,3047.3,0.0481]
[1763405608120,0.002,3048.7,3047.4,0.405504]
[1763405608305,0.002,3048.7,3047.4,9.46540933]
[1763405608504,0.002,3048.7,3047.5,0.0481]
[1763405608684,0.002,3048.7,3047.6,0.95135093]
[1763405609124,0.002,3048.7,3047.8,0.405504]
[1763405609519,0.002,3048.7,3048.6,0.0481]
[1763405610193,0.002,3048.7,3048.6,0.453604]
[1763405610393,0.002,3048.7,3048.2,0.405504]
[1763405610989,0.002,3048.7,3048.6,0.0481]
[1763405611194,0.002,3048.7,3048.0,0.405504]
[1763405611433,0.002,3048.7,3048.6,0.0481]
[1763405611798,0.002,3048.7,3048.6,0.0962]
[1763405614016,0.002,3048.7,3048.6,0.0481]
[1763405614734,0.002,3048.7,3048.6,0.0962]
[1763405617753,0.002,3048.7,3048.2,0.0481]
[1763405617899,0.002,3048.7,3047.9,9.10800533]
[1763405618096,0.002,3048.7,3048.6,0.0481]
[1763405618353,0.002,3048.7,3048.0,0.91080053]
[1763405618506,0.002,3048.7,3047.0,2.34856043]
[1763405618507,0.4915,3048.6,3047.1,10.28200573]
[1763405618703,0.4915,3048.6,3047.1,9.10800533]
[1763405618898,0.4915,3048.6,3047.1,0.0481]
[1763405619116,0.4915,3048.6,3047.2,0.405504]
[1763405619934,0.4915,3048.6,3047.2,9.46540933]
[1763405620139,0.002,3048.7,3047.4,0.405504]
[1763405620507,0.002,3048.7,3047.6,0.405504]
[1763405621031,0.002,3048.7,3047.8,0.405504]
[1763405621246,0.002,3048.7,3047.6,9.05990533]
[1763405621427,0.002,3048.7,3047.7,0.405504]
[1763405621627,0.002,3048.7,3047.6,9.05990533]
[1763405621628,0.002,3048.7,3047.9,0.405504]
[1763405622161,0.4935,3048.7,3047.9,0.405504]
[1763405622727,0.002,3048.7,3047.9,0.405504]
[1763405623261,0.002,3048.7,3048.6,0.453604]
[1763405623459,0.002,3049.1,3048.6,0.48640594]
[1763405623767,0.002,3049.1,3049.0,9.51150933]
[1763405624063,0.1942,3050.5,3049.1,0.405504]
[1763405624259,0.1942,3050.5,3049.3,0.497704]
[1763405624422,0.1942,3050.5,3049.3,0.543804]
[1763405625168,0.1942,3049.9,3049.3,0.0461]
[1763405625969,0.1942,3049.9,3048.8,0.405504]
[1763405625970,0.9557,3049.4,3048.4,0.0461]
[1763405626470,0.4915,3049.3,3048.4,1.07410057]
[1763405626670,0.4642,3049.4,3048.4,0.0461]
[1763405626965,0.002,3049.4,3048.4,0.0461]
[1763405627166,0.4915,3049.3,3048.4,0.0461]
[1763405627744,0.002,3049.4,3048.9,0.405504]
[1763405628070,0.002,3049.4,3048.5,0.451604]
[1763405628276,0.002,3049.4,3048.7,0.405504]
[1763405629391,0.002,3049.4,3049.3,0.0461]
[1763405629567,0.002,3049.4,3048.8,0.0461]
[1763405629568,0.002,3049.4,3048.9,0.405504]
[1763405630433,0.4935,3049.4,3048.8,0.405504]
[1763405630680,0.4935,3049.4,3048.7,1.1740004]
[1763405630834,0.002,3049.4,3048.7,0.22471614]
[1763405631338,0.002,3049.4,3048.8,0.405504]
[1763405631731,0.002,3049.4,3048.7,0.22471614]
[1763405631954,0.002,3049.4,3048.8,0.405504]
[1763405632155,0.002,3049.4,3048.7,0.22471614]
[1763405632695,0.002,3049.4,3048.7,1.39871654]
[1763405632996,0.002,3049.4,3048.8,0.405504]
[1763405633207,0.002,3049.4,3048.9,0.18042205]
[1763405634579,0.4935,3049.4,3048.9,0.18042205]
[1763405634781,0.4935,3049.4,3048.7,1.39871654]
[1763405634782,0.4935,3049.4,3048.8,0.405504]
[1763405635300,0.4935,3049.4,3048.8,1.5795044]
[1763405635301,0.002,3049.4,3048.8,1.5795044]
[1763405635464,0.002,3049.4,3048.9,1.1740004]
[1763405635665,0.002,3049.4,3049.3,0.451604]
[1763405636088,0.002,3049.4,3049.3,1.6256044]
[1763405636291,0.002,3049.4,3049.3,1.69625503]
[1763405636600,0.002,3049.4,3049.3,1.74235503]
[1763405636786,0.002,3049.4,3049.3,3.50335563]
[1763405637566,0.002,3049.4,3049.3,1.74235503]
[1763405637764,0.002,3049.4,3049.3,1.69625503]
[1763405637970,0.002,3049.4,3049.3,3.46377971]
[1763405638169,0.002,3049.4,3049.3,2.26523825]
[1763405638603,0.002,3049.4,3049.3,2.17303825]
[1763405638782,0.002,3049.4,3049.3,0.405504]
[1763405639386,0.002,3049.4,3049.3,2.21913825]
[1763405640016,0.002,3049.4,3049.3,2.17303825]
[1763405640420,0.9557,3049.4,3049.1,1.17854556]
[1763405640618,0.6564,3048.9,3048.8,1.17954556]
[1763405640820,0.6564,3048.9,3048.8,0.001]
[1763405641109,1.1479,3048.9,3048.8,0.001]
[1763405642267,0.1942,3048.9,3048.8,0.001]
[1763405642946,1.1479,3048.9,3048.8,0.001]
[1763405644817,1.1479,3048.9,3048.4,0.001]
[1763405644818,7.70764284,3048.9,3048.4,0.001]
[1763405645017,7.70764284,3048.9,3048.1,0.001]
[1763405645018,0.4622,3048.5,3048.1,0.001]
[1763405645217,2.60989497,3048.8,3046.7,1.17854556]
[1763405645218,0.4622,3048.2,3046.7,1.17854556]
[1763405645525,0.4622,3048.2,3046.6,0.0471]
[1763405645526,0.90699264,3048.1,3046.6,1.22564556]
[1763405645713,1.37009264,3048.1,3046.6,1.22564556]
[1763405645914,0.97439204,3048.0,3046.6,0.29941798]
[1763405646115,0.1853,3046.7,3046.4,0.001]
[1763405647218,0.4631,3047.1,3046.4,0.001]
[1763405647523,0.1853,3047.1,3046.4,0.001]
[1763405647851,0.1853,3047.1,3046.4,0.406504]
[1763405648254,0.1853,3047.3,3046.4,0.001]
[1763405648960,0.4631,3047.2,3046.4,0.001]
[1763405649643,0.45162836,3047.2,3046.4,0.001]
[1763405650139,9.64206916,3049.0,3046.4,0.0606]
[1763405650140,0.1853,3047.6,3046.4,0.0606]
[1763405650338,0.1853,3047.6,3046.4,0.16546496]
[1763405650531,0.1853,3047.6,3046.4,0.001]
[1763405651619,0.49,3046.5,3046.4,0.001]
[1763405651813,0.49,3046.5,3045.6,2.39666043]
[1763405651814,9.44786916,3046.8,3045.3,1.17854556]
[1763405652025,9.44786916,3046.8,3044.5,2.92480177]
[1763405652026,0.1853,3045.8,3043.7,0.0656]
[1763405652225,0.1853,3044.8,3042.9,1.17854556]
[1763405652421,0.1853,3044.8,3042.7,1.89873425]
[1763405652422,0.4631,3044.7,3042.7,0.1312]
[1763405652650,1.37009264,3044.7,3042.7,0.0656]
[1763405652855,1.10032618,3044.6,3042.7,0.0656]
[1763405653133,0.4631,3044.6,3042.7,0.0656]
[1763405653330,0.4631,3044.5,3042.7,0.0656]
[1763405653842,0.305595,3044.5,3042.8,0.406504]
[1763405654164,0.1853,3044.7,3042.8,0.001]
[1763405655068,0.1853,3044.7,3042.8,0.406504]
[1763405655229,4.14108691,3044.8,3042.8,0.001]
[1763405655230,0.61793869,3044.6,3042.8,0.001]
[1763405655429,0.1853,3042.9,3042.8,0.001]
[1763405655640,0.1853,3044.0,3042.8,0.001]
[1763405655840,0.6484,3044.0,3042.8,0.001]
[1763405656773,0.6484,3044.0,3042.8,0.406504]
[1763405656934,0.1853,3044.0,3042.8,0.406504]
[1763405657266,0.4631,3043.9,3042.8,0.406504]
[1763405657827,0.4631,3043.9,3042.8,0.001]
[1763405658763,1.37009264,3043.9,3042.8,0.001]
[1763405658957,0.48405658,3043.8,3042.8,0.001]
[1763405659195,0.4661,3043.7,3042.8,0.001]
[1763405659982,0.1853,3044.0,3042.8,0.001]
[1763405660190,0.1853,3044.0,3042.8,0.406504]
[1763405660389,0.1853,3044.0,3043.0,0.405504]
[1763405660585,0.1853,3044.0,3042.8,0.001]
[1763405660586,0.6514,3044.6,3043.2,0.405504]
[1763405660769,0.6514,3044.6,3043.4,0.405504]
[1763405660969,0.6514,3044.6,3043.5,0.0328569]
[1763405661304,0.6514,3044.6,3043.4,0.405504]
[1763405661305,0.4661,3044.5,3043.4,0.405504]
[1763405664205,0.4661,3044.5,3043.3,0.4519]
[1763405664206,0.4661,3044.5,3043.2,0.405504]
[1763405668918,0.4661,3044.5,3043.3,0.405504]
[1763405669078,0.4661,3044.5,3043.1,0.0674]
[1763405669278,0.4661,3044.5,3043.2,0.405504]
[1763405670013,0.85968206,3044.5,3043.2,0.405504]
[1763405670222,0.4661,3044.5,3043.1,0.0674]
[1763405670389,0.4661,3044.5,3042.8,0.001]
[1763405670390,1.37309264,3044.4,3042.8,0.001]
[1763405670595,0.405504,3044.3,3042.8,0.001]
[1763405670810,0.90699264,3043.8,3042.8,0.001]
[1763405671114,2.16274399,3044.3,3042.8,0.001]
[1763405671284,0.1953,3043.7,3042.8,0.001]
[1763405671679,0.4661,3043.6,3042.8,0.001]
[1763405672079,0.4951,3042.9,3042.8,0.001]
[1763405672419,0.4661,3043.6,3042.8,0.001]
[1763405672714,0.4661,3043.5,3043.1,0.001]
[1763405673087,0.4951,3043.2,3043.1,0.001]
[1763405673612,0.9612,3043.2,3043.1,0.001]
[1763405674175,0.4661,3043.6,3043.1,0.001]
[1763405675089,0.4951,3043.2,3043.1,0.001]
[1763405675291,0.9612,3043.2,3043.1,0.001]
[1763405675805,0.9612,3043.2,3042.8,0.001]
[1763405676021,0.1953,3043.7,3042.8,0.001]
[1763405676022,0.2404,3042.9,3042.8,0.001]
[1763405676515,0.7203,3042.9,3042.8,0.001]
[1763405684962,0.2404,3042.9,3042.8,0.001]
[1763405685165,0.7203,3042.9,3042.8,0.001]
[1763405688427,0.9624,3042.9,3042.8,0.001]
[1763405689394,5.15573133,3042.9,3042.8,0.001]
[1763405689536,6.04135536,3042.9,3042.8,0.001]
[1763405689734,0.90699264,3042.8,3042.5,0.001]
[1763405689934,0.2393,3042.6,3042.5,0.001]
[1763405690130,0.7192,3042.6,3042.5,0.001]
[1763405690335,0.7192,3042.6,3042.4,0.001]
[1763405690336,2.04046563,3042.6,3042.4,0.001]
[1763405690561,2.10873348,3042.5,3042.4,0.001]
[1763405691133,0.9599,3042.5,3042.4,0.001]
[1763405691748,1.86689264,3042.5,3042.4,0.001]
[1763405691940,0.9599,3042.5,3042.4,0.001]
[1763405692635,1.86689264,3042.5,3042.4,0.001]
[1763405692839,0.9599,3042.5,3042.4,0.001]
[1763405693050,1.86689264,3042.5,3042.4,0.001]
[1763405693254,5.66902594,3042.5,3042.4,0.001]
[1763405693451,2.3822552,3042.5,3042.4,0.001]
[1763405693650,5.66902594,3042.5,3042.4,0.001]
[1763405694051,2.3822552,3042.5,3042.4,0.001]
[1763405694256,1.86689264,3042.5,3042.4,0.001]
[1763405694546,1.38699264,3042.5,3042.4,0.001]
[1763405695576,1.86689264,3042.5,3042.4,0.001]
[1763405695876,0.90699264,3042.5,3042.4,0.001]
[1763405697984,1.86939264,3042.5,3042.4,0.001]
[1763405698303,2.0563319,3042.5,3042.4,0.001]
[1763405698460,5.34310264,3042.5,3042.4,0.001]
[1763405698659,5.75737563,3042.5,3042.4,0.001]
[1763405699300,5.34310264,3042.5,3042.4,0.001]
[1763405700408,0.2393,3042.2,3040.1,1.17854556]
[1763405700603,0.2393,3042.2,3039.4,1.17854556]
[1763405700604,0.48,3041.1,3039.4,1.17854556]
[1763405700801,0.1806,3040.0,3039.4,0.1852]
[1763405700962,0.90699264,3040.8,3039.5,0.51540014]
[1763405701161,0.4799,3041.0,3039.9,0.4752]
[1763405701381,0.1806,3041.1,3039.2,0.1852]
[1763405701382,0.4799,3040.9,3039.2,0.1852]
[1763405701701,0.4799,3040.9,3039.0,3.07947981]
[1763405701702,0.2679,3039.3,3038.2,0.1334]
[1763405702006,0.33640818,3040.8,3039.3,0.1852]
[1763405702224,0.4799,3040.8,3039.4,0.4752]
[1763405702501,0.4799,3040.8,3039.5,0.405504]
[1763405702671,0.4799,3040.8,3039.3,0.1852]
[1763405702874,0.4799,3040.8,3039.2,0.405504]
[1763405703075,0.89417299,3040.8,3039.2,0.405504]
[1763405703404,0.59487299,3040.7,3039.1,0.1852]
[1763405703565,0.59487299,3040.7,3039.3,0.4825]
[1763405703566,0.6605,3040.7,3039.3,0.4825]
[1763405703768,0.6605,3040.7,3039.4,0.405504]
[1763405703963,0.4799,3040.6,3039.4,0.405504]
[1763405704164,0.4799,3040.6,3038.7,1.17854556]
[1763405704165,0.4799,3040.6,3039.2,0.405504]
[1763405704473,1.38689264,3040.6,3038.3,1.17854556]
[1763405704676,1.67870521,3040.4,3038.2,0.1334]
[1763405704877,1.67870521,3040.4,3037.7,1.76753425]
[1763405704878,2.99041094,3040.3,3037.5,0.1834]
[1763405705105,2.596505,3039.8,3037.2,10.26677155]
[1763405705274,1.29967699,3039.7,3037.2,9.08822599]
[1763405705606,0.90699264,3039.4,3037.3,0.4825]
[1763405705901,0.91801088,3039.3,3037.4,0.9570726]
[1763405706209,0.461,3039.3,3037.4,0.9570726]
[1763405706358,1.08889264,3039.0,3036.5,0.4867]
[1763405706563,0.1819,3039.0,3036.7,9.08822599]
[1763405706764,0.461,3038.9,3036.8,0.4867]
[1763405707162,0.461,3038.9,3036.0,1.36194556]
[1763405707163,0.1819,3036.9,3036.2,9.08822599]
[1763405707412,0.1819,3036.9,3035.3,0.1852]
[1763405707561,0.1819,3036.9,3035.0,1.90093425]
[1763405707562,0.1819,3035.9,3035.0,0.1334]
[1763405707766,0.1819,3035.9,3034.6,0.1334]
[1763405708005,0.461,3035.8,3034.1,0.4867]
[1763405708208,0.461,3035.8,3034.1,0.9667526]
[1763405708405,0.461,3035.8,3033.2,1.17854556]
[1763405708406,1.75552208,3035.8,3033.1,9.57492599]
[1763405708575,1.75552208,3035.8,3033.1,9.08822599]
[1763405708576,0.38752944,3035.7,3033.1,9.08822599]
[1763405708774,0.17555221,3035.6,3033.2,0.9574926]
[1763405709001,0.90699264,3035.5,3033.2,1.4441926]
[1763405709206,1.75552208,3035.5,3033.3,0.4867]
[1763405709390,0.461,3035.4,3035.3,0.001]
[1763405711043,0.1819,3035.9,3035.3,0.001]
[1763405711044,0.461,3035.8,3035.3,0.001]
[1763405711305,0.1819,3036.0,3035.3,0.001]
[1763405711692,0.6429,3036.0,3035.3,0.001]
[1763405712226,9.08822599,3035.9,3035.3,0.001]
[1763405712430,0.461,3038.5,3035.8,9.08822599]
[1763405712578,9.08822599,3039.0,3036.4,0.405504]
[1763405712579,0.1819,3037.9,3036.4,0.405504]
[1763405712919,0.461,3038.1,3035.9,1.3143266]
[1763405712920,0.461,3038.1,3036.2,0.90699264]
[1763405713209,0.461,3038.1,3036.3,0.405504]
[1763405713210,0.1819,3037.8,3036.3,0.405504]
[1763405713508,0.1819,3037.8,3035.3,0.001]
[1763405713509,0.1819,3037.8,3035.4,0.405504]
[1763405714018,9.54922599,3037.7,3035.4,0.405504]
[1763405714317,1.88010524,3037.6,3035.3,0.001]
[1763405714703,0.461,3037.5,3035.3,0.001]
[1763405715643,0.90699264,3037.1,3035.3,0.001]
[1763405715842,0.41042061,3037.4,3035.3,0.001]
[1763405716160,0.461,3038.0,3035.3,0.001]
[1763405716451,0.461,3037.7,3035.3,0.001]
[1763405717515,7.90422667,3036.7,3035.3,0.001]
[1763405717720,2.14851531,3036.6,3035.3,0.001]
[1763405718183,0.4511,3036.5,3035.3,0.001]
[1763405718470,0.1835,3035.4,3035.3,0.001]
[1763405718828,0.6346,3035.4,3035.3,0.001]
[1763405719556,0.4511,3036.1,3035.3,0.001]
[1763405722307,3.29232038,3037.4,3035.3,0.001]
[1763405722308,0.1835,3036.6,3035.3,0.001]
[1763405722971,0.1835,3037.0,3035.3,0.001]
[1763405723262,0.4511,3036.9,3035.3,0.001]
[1763405726028,0.90699264,3036.7,3035.3,0.001]
[1763405726268,1.33222193,3036.6,3035.3,0.001]
[1763405726762,0.4511,3036.5,3035.3,0.001]
[1763405726962,0.90699264,3036.1,3035.3,0.001]
[1763405727118,0.90699264,3036.2,3035.3,0.001]
[1763405727324,0.4511,3036.1,3035.3,0.001]
[1763405727522,1.98,3036.0,3035.3,0.001]
[1763405727838,0.24311,3035.9,3035.3,0.001]
[1763405728031,0.4511,3036.0,3035.3,0.001]
[1763405728252,0.4511,3036.1,3035.3,0.001]
[1763405729554,0.86152061,3036.1,3035.3,0.001]
[1763405729720,0.90699264,3035.6,3033.4,0.001]
[1763405729949,0.90699264,3035.6,3034.2,0.405504]
[1763405730147,1.66163769,3035.5,3033.9,0.001]
[1763405730390,0.1835,3035.4,3034.2,0.405504]
[1763405731050,7.90422667,3036.2,3034.3,0.001]
[1763405731051,0.1835,3035.7,3034.3,0.001]
[1763405731989,0.1835,3036.0,3034.3,0.001]
[1763405733505,0.4511,3036.4,3034.3,0.001]
[1763405733506,0.1835,3036.2,3034.3,0.001]
[1763405733792,0.90699264,3036.0,3034.2,0.405504]
[1763405733975,0.87116918,3035.9,3034.1,0.0926]
[1763405734177,0.4511,3035.9,3034.2,0.001]
[1763405734489,0.4511,3035.8,3034.2,0.001]
[1763405734989,0.4511,3035.8,3034.2,0.406504]
[1763405735397,0.4511,3035.8,3034.1,0.0926]
[1763405735900,1.35809264,3035.8,3034.1,0.0926]
[1763405736203,0.46520706,3035.7,3034.2,0.405504]
[1763405736357,0.94840706,3035.7,3034.2,0.405504]
[1763405736758,0.4832,3035.6,3034.2,0.405504]
[1763405736994,0.4832,3035.6,3034.1,0.0926]
[1763405737495,0.4832,3035.6,3034.3,0.405504]
[1763405737673,0.4832,3035.6,3034.2,0.405504]
[1763405738072,0.90699264,3036.1,3034.3,0.001]
[1763405738384,0.4832,3036.7,3034.3,0.001]